Cogmind - Beta 14 @@@ ROGUE MODE // 2024.09.20 @ 15:15:06 Player: Bunch Result: Destroyed by as-52992 with Assembled Heavy Rifle Performance ------------- Evolutions (0) 0 Regions Visited (4) 800 Robots Destroyed (12) 60 Value Destroyed (216) 216 Prototype IDs (24) 480 Alien Tech Used (0) 0 Bonus (300) 300 TOTAL SCORE: 1856 Bonus ------- Aligned with FarCom 300 Cogmind --------- Core Integrity 0/250 Matter 300/300 Energy 250/250 System Corruption 9% Temperature Cool (0) Movement Rolling (95) Ox1 Location -9/Mines Parts ------- > --- POWER (1) -------- Ion Engine > --- PROPULSION (2) --- Wheel Wheel > --- UTILITY (2) ------ Large Storage Unit > --- WEAPON (2) ------- Assault Rifle > --- INVENTORY (15) --- Ion Engine High-capacity Storage Unit Humpback Signal Interpreter Improved EM Shotgun Assault Rifle AWS/Gauss Grenade Launcher Enhanced Flamer Peak State ------------ > --- POWER ------------ Ion Engine > --- PROPULSION ------- Light Treads Light Treads > --- UTILITY ---------- Large Storage Unit Signal Interpreter > --- WEAPON ----------- Improved EM Shotgun Assault Rifle > --- INVENTORY -------- Ion Engine Ion Engine Wheel Compact Wheel Improved EM Shotgun Assault Rifle Assault Rifle Grenade Launcher [Rating: 10] Favorites ----------- Power Ion Engine Engine Ion Engine Propulsion Wheel Treads Light Treads Wheel Wheel Utility Large Storage Unit Storage Large Storage Unit Processor Signal Interpreter Weapon Assault Rifle Energy Gun Improved EM Shotgun Ballistic Gun Assault Rifle Special Weapon Enhanced Flamer Build | -11 -10 -10 -10 -9 ------- Run | Yrd Mat Min Exi Min Slots Evolved . | . . . . . Power . | . . . . . Propulsion . | . . . . . Utility . | . . . . . Weapon . | . . . . . Parts Attached 20 | 6 7 6 . 1 Power 2 | 1 . 1 . . Engine 2 | 1 . 1 . . Core . | . . . . . Reactor . | . . . . . Propulsion 7 | 2 2 2 . 1 Treads 2 | 2 . . . . Leg . | . . . . . Wheel 5 | . 2 2 . 1 Hover . | . . . . . Flight . | . . . . . Utility 5 | 1 4 . . . Device . | . . . . . Storage 4 | 1 3 . . . Processor 1 | . 1 . . . Hackware . | . . . . . Protection . | . . . . . Artifact . | . . . . . Weapon 6 | 2 1 3 . . Energy Gun 2 | . 1 1 . . Energy Cannon . | . . . . . Ballistic Gun 3 | 2 . 1 . . Ballistic Cannon . | . . . . . Launcher . | . . . . . Special Weapon 1 | . . 1 . . Impact Weapon . | . . . . . Slashing Weapon . | . . . . . Piercing Weapon . | . . . . . Special Melee Weapon . | . . . . . Unidentified Prototypes 1 | . 1 . . . Parts Lost 7 | . 1 3 . 3 Power . | . . . . . Propulsion 4 | . 1 2 . 1 Utility 1 | . . . . 1 Weapon 2 | . . 1 . 1 Highest Loss Streak 2 | . 1 1 . 2 To Critical Strikes . | . . . . . Average Slot Usage (%) 96 | . 94 96 100 96 Engine 14 | . 14 14 14 14 Treads 10 | . 27 . . . Wheel 17 | . . 24 28 27 Storage 14 | . 14 14 14 14 Processor 11 | . 9 14 14 11 Energy Gun 3 | . 7 4 . . Ballistic Gun 22 | . 20 16 28 27 Special Weapon 1 | . . 6 . . Peak Build Rating 10 | 6 10 10 9 10 Average Rating 8 | 4 8 8 8 8 On Entrance 6 | . 6 9 8 9 Naked Turns . | . . . . . Heaviest Build 30 | 14 30 30 29 29 Greatest Support 40 | 40 40 26 20 20 Greatest Overweight (x) 9 | . 1 9 1 2 Average Overweight (x) . | . . 1 1 1 Largest Inventory Capacity 20 | 8 20 15 15 15 Average Capacity 14 | 7 14 15 15 15 Most Carried 12 | 4 9 9 11 12 Average Carried 7 | 1 6 7 8 11 Final Capacity 15 | 8 15 15 15 15 Final Carried 11 | 3 7 7 11 11 Class Distribution -------------------- 100% | Mutant Dominant Class ---------------- Mutant | -10/Materials Mutant | -10/Mines Mutant | -10/Exiles Mutant | -9/Mines Resources | -11 -10 -10 -10 -9 ----------- Run | Yrd Mat Min Exi Min Matter Collected 529 | 178 174 103 . 74 Remotely . | . . . . . Salvage Created 350 | . 203 116 . 31 Parts 30 | . 16 14 . . Haulers Intercepted . | . . . . . Recyclers Shooed . | . . . . . Parts Field Recycled . | . . . . . Retrieved Matter . | . . . . . Parts Self-Destructed . | . . . . . Prevented . | . . . . . Kills | -11 -10 -10 -10 -9 ------- Run | Yrd Mat Min Exi Min Combat Hostiles Destroyed 12 | . 4 6 . 2 Guns 9 | . 4 3 . 2 Cannons 2 | . . 2 . . AOE 1 | . . 1 . . Classes Destroyed 5 | . 2 2 . 1 Worker 2 | . . 2 . . Swarmer 6 | . . 6 . . Grunt 1 | . 1 . . . Subdweller 3 | . 3 . . . Assembled 2 | . . . . 2 Best Kill Streak 4 | . 3 4 . 2 Combat Bots Only 3 | . 3 3 . 2 Max Kills in Single Turn 1 | . 1 1 . 1 Gunslinging . | . . . . . Exploded 1 | . . 1 . . Melee . | . . . . . Uniques/NPCs Destroyed . | . . . . . Combat | -11 -10 -10 -10 -9 -------- Run | Yrd Mat Min Exi Min Hostile Shots Fired 109 | . 48 33 . 28 Missed 34 | . 18 10 . 6 Damage Taken 1081 | . 458 228 . 395 Core 263 | . 90 57 . 116 Absorbed by Shields . | . . . . . Core Remaining (%) 100 | 100 . . . . Volleys Fired 38 | . 12 14 2 10 Largest 2 | . 2 2 2 2 Hottest 100 | . 65 100 40 40 Shots Fired 73 | . 24 26 4 19 Gun 65 | . 24 18 4 19 Cannon . | . . . . . Launcher . | . . . . . Special 8 | . . 8 . . Kinetic 51 | . 14 14 4 19 Thermal 8 | . . 8 . . Explosive . | . . . . . Electromagnetic 14 | . 10 4 . . Robot Hit Streak 21 | . 21 6 . 3 Robot Miss Streak 4 | . 2 3 . 4 Penetration Max . | . . . . . Secondary Targets 3 | . 1 2 . . Max Gunslinging Chain 1 | . 1 1 . . Shots Hit Robots 47 | . 21 17 . 9 Core Hits 24 | . 11 8 . 5 Critical Kills . | . . . . . Critical Parts Destroyed 1 | . 1 . . . Critical Strikes 1 | . 1 . . . Destroy 1 | . 1 . . . Melee Attacks . | . . . . . Impact . | . . . . . Slashing . | . . . . . Piercing . | . . . . . Sneak Attacks . | . . . . . Combat Hostiles . | . . . . . Follow-up Attacks . | . . . . . Damage Inflicted 749 | . 342 291 . 116 Guns 593 | . 331 146 . 116 Cannons . | . . . . . Explosions 73 | . . 73 . . Melee . | . . . . . Ramming 27 | . 11 16 . . Kinetic 376 | . 161 99 . 116 Thermal 129 | . . 129 . . Explosive . | . . . . . Electromagnetic 217 | . 170 47 . . Impact . | . . . . . Slashing . | . . . . . Piercing . | . . . . . Highest Corruption 9 | . . 1 1 9 Average Corruption 1 | . . 1 1 1 Corruption Purged . | . . . . . Corruption Blocked . | . . . . . Effects 5 | . . 1 2 2 Heat Flow Errors 2 | . . . 1 1 Energy Discharges 1 | . . 1 . . Data Loss (minor) 1 | . . . 1 . Weapon Failures 1 | . . . . 1 Overload Shots . | . . . . . Overflow Damage 2 | . . 2 . . Projectiles . | . . . . . Explosions 2 | . . 2 . . Melee . | . . . . . Knockbacks . | . . . . . Impact . | . . . . . Kinetic . | . . . . . Secondary . | . . . . . Self-Inflicted Damage 35 | . . 35 . . Shots 1 | . . 1 . . Rammed 3 | . 1 2 . . Targets Rammed 3 | . 1 2 . . Kicked . | . . . . . Crushed . | . . . . . Highest Temperature 247 | . 69 96 229 247 Average Temperature 54 | . 42 31 119 94 Received Heat Transfer 234 | . 174 . . 60 Siege Activations . | . . . . . Robots Corrupted . | . . . . . Combat Hostiles . | . . . . . Parts Fried . | . . . . . Impact Corruptions . | . . . . . Robots Melted . | . . . . . Combat Hostiles . | . . . . . Parts Melted 1 | . 1 . . . Heat Transferred 500 | . . 500 . . Parts Sabotaged . | . . . . . Parts Stolen . | . . . . . Parts Stripped . | . . . . . Power Chain Reactions 1 | . . 1 . . Alert | -11 -10 -10 -10 -9 ------- Run | Yrd Mat Min Exi Min Peak Influence 128 | . 60 128 . 15 Initial . | . . . . . Average 25 | . 20 55 . 4 Maximum Alert Level . | . . . . . Low Security (%) 100 | 100 100 100 . 100 Level 1 . | . . . . . Level 2 . | . . . . . Level 3 . | . . . . . Level 4 . | . . . . . Level 5 . | . . . . . High Security . | . . . . . Max Security . | . . . . . Squads Dispatched 2 | . 2 . . . Investigation . | . . . . . Extermination . | . . . . . Reinforcement 2 | . 2 . . . Assault . | . . . . . Garrison . | . . . . . Intercept . | . . . . . Searches Triggered . | . . . . . Construction Impeded . | . . . . . Haulers Reinforced . | . . . . . Active Scanning Responses . | . . . . . Cargo Convoy Interrupts . | . . . . . Stealth | -11 -10 -10 -10 -9 --------- Run | Yrd Mat Min Exi Min Distress Signals 1 | . 1 . . . Communications Jammed . | . . . . . Distress Signals . | . . . . . Times Spotted 31 | . 13 6 . 12 Peak Tracking Total 7 | . 6 3 . 7 Tactical Retreats 4 | . 1 . . 3 Traps | -11 -10 -10 -10 -9 ------- Run | Yrd Mat Min Exi Min Traps Triggered . | . . . . . Indirectly . | . . . . . Trap Hack Attempts . | . . . . . Triggered . | . . . . . Disarmed . | . . . . . Reprogrammed . | . . . . . Reused . | . . . . . Traps Extracted . | . . . . . Installed . | . . . . . Triggered . | . . . . . Machines | -11 -10 -10 -10 -9 ---------- Run | Yrd Mat Min Exi Min Machines Disabled 1 | . . . 1 . Max in Single Turn 1 | . . . 1 . Machines Repaired . | . . . . . Machines Dismantled . | . . . . . Machines Sabotaged . | . . . . . Overloaded Fab Kills . | . . . . . Hacking | -11 -10 -10 -10 -9 --------- Run | Yrd Mat Min Exi Min Machines Accessed 4 | . . . 4 . Terminals . | . . . . . Fabricators . | . . . . . Repair Stations . | . . . . . Recycling Units . | . . . . . Scanalyzers . | . . . . . Garrison Access . | . . . . . Total Hacks 28 | . . . 28 . Successful 28 | . . . 28 . Failed . | . . . . . Catastrophic . | . . . . . Database Lockouts . | . . . . . Manual 1 | . . . 1 . Terminals . | . . . . . Fabricators . | . . . . . Repair Stations . | . . . . . Recycling Units . | . . . . . Scanalyzers . | . . . . . Garrison Access . | . . . . . Terminal Hacks 28 | . . . 28 . Record 27 | . . . 27 . Derelict Proto ID Bank 1 | . . . 1 . Fabricator Hacks . | . . . . . Repair Station Hacks . | . . . . . Recycling Unit Hacks . | . . . . . Scanalyzer . | . . . . . Garrison Access Hacks . | . . . . . Unauthorized Hacks . | . . . . . Terminals . | . . . . . Fabricators . | . . . . . Repair Stations . | . . . . . Recycling Units . | . . . . . Scanalyzers . | . . . . . Garrison Access . | . . . . . Data Cores Recovered . | . . . . . Used . | . . . . . Hacking Detections . | . . . . . Full Trace Events . | . . . . . Feedback Events . | . . . . . Feedback Blocked . | . . . . . Robot Schematics Acquired . | . . . . . Robots Built . | . . . . . Authchips . | . . . . . Time . | . . . . . Total Robot Build Rating . | . . . . . Part Schematics Acquired . | . . . . . Parts Built . | . . . . . Authchips . | . . . . . Time . | . . . . . Total Part Build Rating . | . . . . . Parts Repaired . | . . . . . Time . | . . . . . Parts Recycled . | . . . . . Recycled Matter . | . . . . . Retrieved Matter . | . . . . . Retrieved Components . | . . . . . Parts Scanalyzed . | . . . . . Part Schematics Acquired . | . . . . . Parts Damaged . | . . . . . Bothacking | -11 -10 -10 -10 -9 ------------ Run | Yrd Mat Min Exi Min Used RIF Installer . | . . . . . Robots Hacked . | . . . . . Non-combat . | . . . . . Combat . | . . . . . Robot Hacks Applied . | . . . . . Relay Couplers Released . | . . . . . Fabnet Peak Effective % . | . . . . . Robots Rewired . | . . . . . Allies Hacked . | . . . . . Hacks Repelled . | . . . . . Allies | -11 -10 -10 -10 -9 -------- Run | Yrd Mat Min Exi Min Total Allies . | . . . . . Largest Group . | . . . . . Highest-Rated Group . | . . . . . Highest-Rated Ally . | . . . . . Total Orders . | . . . . . Ally Attacks . | . . . . . Total Damage . | . . . . . Kills . | . . . . . Allies Corrupted . | . . . . . Allies Melted . | . . . . . Intel | -11 -10 -10 -10 -9 ------- Run | Yrd Mat Min Exi Min Robot Analysis Total . | . . . . . Derelict Logs Recovered 2 | . . . . 2 Drone Launches . | . . . . . Drone Recoveries . | . . . . . Exploration | -11 -10 -10 -10 -9 ------------- Run | Yrd Mat Min Exi Min Turns Passed 2570 | 86 899 469 803 313 Spaces Moved 2008 | 55 472 382 815 284 Core 16 | 14 . 2 . . Treads 507 | 41 466 . . . Legs . | . . . . . Wheels 1485 | . 6 380 815 284 Hover . | . . . . . Flight . | . . . . . Fastest Speed 50 | 50 105 95 95 95 Average Speed 113 | 132 159 105 95 95 Slowest Speed 500 | 160 240 500 95 110 Overloaded Moves . | . . . . . Propulsion Burnouts . | . . . . . Robots Hopped . | . . . . . Cave-ins Triggered . | . . . . . Exploration Rate (%) 53 | 4 52 70 93 50 Regions Visited 4 Branch Regions 3 Pre-discovered Areas 4 | . . 1 1 2 Known Exits Taken 3 | . 1 1 1 . Unknown Exits Taken 1 | 1 . . . . Scrap Searched 2 | . . 1 . 1 Spaces Dug . | . . . . . Terrain Destroyed 3 | . . 3 . . Melee . | . . . . . Projectile . | . . . . . AOE 3 | . . 3 . . Terrain Rammed . | . . . . . Walls Destroyed . | . . . . . Machines Disabled . | . . . . . Actions | -11 -10 -10 -10 -9 --------- Run | Yrd Mat Min Exi Min Total 2219 | 69 594 412 839 305 Wait 123 | . 90 4 20 9 Move 2004 | 54 471 381 814 284 Hop . | . . . . . Pick Up 25 | 9 9 4 2 1 Fast Attach . | . . . . . Attach 15 | 6 4 4 . 1 Detach 1 | . 1 . . . Swap 5 | . 3 2 . . Drop 4 | . 3 1 . . Fire 38 | . 12 14 2 10 Melee . | . . . . . Ram 2 | . . 2 . . Kick . | . . . . . Crush 1 | . 1 . . . Escape Stasis . | . . . . . Rewire 1 | . . . 1 . Trap . | . . . . . Miscellaneous . | . . . . . Route ------- -11/Scrapyard -10/Materials (discovered 4 exits: *Mat / *Min x2 / *Sub) -10/Mines (discovered 2 exits: *Mat / *Exi) -10/Exiles (discovered 2 exits: *Min x2) -9/Mines (discovered 1 exit: *Mat) History --------- Turn | Location | Event 24 | -11/Scrapyard | Discovered new exit (range 15) 87 | -11/Scrapyard | Entered Materials 230 | -10/Materials | Discovered new exit (range 16) 308 | -10/Materials | Build established: Mutant 397 | -10/Materials | Identified exit to Mines 410 | -10/Materials | Discovered new exit (range 13) 463 | -10/Materials | Identified exit to Materials 568 | -10/Materials | Discovered new exit (range 9) 585 | -10/Materials | Identified exit to Subcaves 687 | -10/Materials | Derelicts attacked the area 912 | -10/Materials | Discovered exit to Mines (range 14) 986 | -10/Materials | Entered Mines 1145 | -10/Mines | A weapon hastily lodged in a ceiling crevice suddenly fell to the ground 1172 | -10/Mines | Deemed a non-threat by the Exiles lab entrance 1173 | -10/Mines | Discovered new exit (range 5) 1177 | -10/Mines | Identified exit to Exiles 1258 | -10/Mines | Core integrity fell below 50% 1310 | -10/Mines | Discovered exit to Materials (range 11) 1323 | -10/Mines | Learned location of Storage (-7) 1455 | -10/Mines | Entered Exiles 1484 | -10/Exiles | Discovered new exit (range 15) 1496 | -10/Exiles | Identified exit to Mines 1516 | -10/Exiles | Met 8R-AWN 1536 | -10/Exiles | Met EX-HEX 1605 | -10/Exiles | Met EX-DEC 1658 | -10/Exiles | Met EX-BIN 1748 | -10/Exiles | Aligned with FarCom system 1749 | -10/Exiles | Given EX-Vault access code 1870 | -10/Exiles | Discovered exit to Mines (range 10) 1961 | -10/Exiles | Visited The Gauntlet 2100 | -10/Exiles | Learned location of Zion (-6) 2149 | -10/Exiles | Opened EX-Vault 2156 | -10/Exiles | Found AWS/Gauss 2189 | -10/Exiles | Warned to stay clear of 0b10 Research branches 2258 | -10/Exiles | Left Exiles lab with AWS/Gauss 2258 | -10/Exiles | Entered Mines 2273 | -9/Mines | Discovered new exit (range 10) 2281 | -9/Mines | Identified exit to Materials 2377 | -9/Mines | Assembled infested the area 2382 | -9/Mines | Assisted by a Guerilla fighting off Assembled 2544 | -9/Mines | Core integrity fell below 20% 2571 | -9/Mines | Destroyed by as-52992 with Assembled Heavy Rifle Last Messages --------------- 02500_ as-39358 destroyed. 02506_ as-94772 destroyed. 02510_ Acquired 22 matter. 02512_ Acquired Wheel. 02513_ Acquired 13 matter. 02519_ Signal Interpreter destroyed. 02519_ System corrupted by crushing effect (+2). 02522_ Knocked back. 02527_ Wheel destroyed. 02527_ System corrupted by crushing effect (+2). 02540_ System corrupted: Assault Rifle jammed. 02543_ Knocked back. 02546_ System corrupted: Heat flow error (+267). 02548_ Knocked back. 02561_ Assault Rifle destroyed. 02561_ System corrupted by crushing effect (+4). 02561_ Knocked back. 02565_ Acquired 17 matter. 02567_ R-06 Scavenger system corrupted by crushing effect. 02567_ R-06 Scavenger destroyed. Map ----- +----------------------------------------------------+ | | | | | | | | | | | | | | | | | | | ???????????????????????????????????????????????? | | ???????????????????????????????????????????????? | | ???????????????????????????????????????????????? | | ???????????????????????????????????????????????? | | ???????????????????????????????????????????????? | | ??????????????????????###??????????????????????? | | ????????????????????## ##?????????????????????? | | ????????????????##### ##????????????????????? | | ????????######### #????????????????????? | | ????????# a #????????????????????? | | ######### ##### #?????????????????????? | | # #???# = ###?????????????????????? | | # #???##% a ##???????????????????????? | | # #########????### a ##???????????????????????? | | # #??????????????##% #####???????????????????? | | # ##??????????????#* #######?????????????? | | # ##?????????????## @ #?????????????? | | # #??????????????# #?????????????? | | # #????????####### #### #?????????????? | | #????????# a #??????????????????? | | # #????????# ##### #?????????????????? | | ## ##????????# #???## #?????????????????? | | ## #????###### #????## ##?????????????????? | | #? #????# #?????# ####??????????????????? | | ??? #????# #?????# #?????????????????????? | | ???##????# ######????? #?????????????????????? | | ?????????# ##????????? ?????????????????????? | | ???#?????# ##???????? ?????????????????????? | | ####### #???????? #?????????????????????? | | % * #???????? #??????????????????????? | | ##????????#???????????????????????? | | ######### ##????????????????????????????????? | | #????????## #????????????????????????????????? | | #??????### #????????????????????????????????? | | ?????### ##????????????????????????????????? | | ????## ##?????????????????????????????????? | | ????# #??????????????????????????????????? | | ????# ##??????????????????????????????????? | | ????## #???????????????????????????????????? | | ?????#### #??????????????###??????????????????? | | ????????# #?????????????## #??####???????????? | +----------------------------------------------------+ Best States ------------- Heat Dissipation 25 Energy Generation 10 Energy Capacity 250 Matter Stores 300 Matter Capacity 300 Sight Range 16 Terrain Scan Density 10 Evasion (%) 50 Recoil Reduction 2 Item Schematics ----------------- None Robot Schematics ------------------ None Fabricated ------------ Nothing Alien Tech Used ----------------- None Achievements -------------- None Challenges ------------ None Game ------ Seed FusionChromaticLauncher Manual? 0 Play Time 00:25:27 Cumulative 17.5 hours Start 2024.09.20 @ 14:46:50 End 2024.09.20 @ 15:15:06 Sessions 1 Manual Loads 0 Difficulty Rogue Special Mode None Game No. 38 Rogue 33 Adventurer 5 Explorer 0 Win Type - Total 0 Types 0/0/0/0/0/0/0/0/0 Lore% 10 Gallery% 15 Achievement% 14 Wizard Run 0 Options --------- Layout 0 ASCII 0 Keyboard 0 Movement Numpad Keybinds 0 Fullscreen 1 Font 18/SmallcapsGlow Map View 76x50 Zoom Use 0% Tactical HUD 1 Map Filters NONE Filters NONE Steam 1 RUN: 783894e4-f453-4dbd-87db-ff9cfd30a486